bitfinex-derivatives/quotes_SOLF0:USTF0_20250110
["timestamp","ask_amount","ask_price","bid_price","bid_amount"]
[1736519422545,2.654,188.41,188.29,1.6644]
[1736519422764,3.2828,188.42,188.31,19.44759174]
[1736519422948,2.6533,188.45,188.39,2.654]
[1736519423251,5.88,188.47,188.31,19.44759174]
[1736519423651,2.6538,188.42,188.31,19.44759174]
[1736519423854,5.88,188.47,188.31,19.44759174]
[1736519424253,3.2828,188.49,188.34,19.44759174]
[1736519424655,2.6535,188.44,188.38,2.6542]
[1736519424857,19.44759174,188.48,188.31,19.44759174]
[1736519425257,2.6544,188.38,188.32,2.655]
[1736519425455,25.32759174,188.42,188.28,21.07259174]
[1736519425657,2.6542,188.39,188.28,19.44759174]
[1736519425857,1.6112,188.41,188.29,1.6439]
[1736519426055,5.88,188.48,188.34,19.44759174]
[1736519426353,2.6533,188.45,188.34,19.44759174]
[1736519426555,1.6112,188.48,188.34,19.44759174]
[1736519426759,2.6535,188.44,188.38,2.6542]
[1736519427160,1.6112,188.48,188.37,19.44759174]
[1736519427350,1.6214,188.49,188.37,19.44759174]
[1736519427554,1.6214,188.49,188.38,1.6439]
[1736519427756,4.2742,188.49,188.44,2.6534]
[1736519427953,3.2643,188.54,188.4,19.44759174]
[1736519428856,19.44759174,188.63,188.46,19.44759174]
[1736519429059,19.44759174,188.63,188.41,5.88]
[1736519429060,1.6458,188.62,188.49,19.44759174]
[1736519429266,1.6339,188.63,188.52,19.44759174]
[1736519429457,1.5153,188.67,188.52,19.44759174]
[1736519429652,1.6339,188.66,188.52,19.44759174]
[1736519430260,1.6339,188.66,188.55,19.44759174]
[1736519430456,21.08149174,188.66,188.53,1.6385]
[1736519430857,21.08149174,188.66,188.52,19.44759174]
[1736519431057,19.44759174,188.63,188.49,19.44759174]
[1736519431264,21.08149174,188.66,188.52,19.44759174]
[1736519431562,21.08149174,188.66,188.49,19.44759174]
[1736519431761,6.93315,188.58,188.49,19.44759174]
[1736519431958,6.93315,188.58,188.52,2.6523]
[1736519432157,6.93315,188.58,188.47,1.5986]
[1736519432365,6.93315,188.58,188.43,20.96249174]
[1736519432561,22.48689174,188.57,188.41,1.5986]
[1736519433056,1.614,188.56,188.41,1.5986]
[1736519433463,1.614,188.56,188.43,19.44759174]
[1736519433665,3.0393,188.57,188.46,19.44759174]
[1736519434563,6.93315,188.58,188.46,19.44759174]
[1736519434758,6.93315,188.58,188.49,19.44759174]
[1736519435066,6.93315,188.58,188.46,19.44759174]
[1736519435260,6.93315,188.58,188.43,19.44759174]
[1736519435462,22.63629174,188.57,188.41,1.5986]
[1736519435866,19.44759174,188.54,188.38,1.6345]
[1736519436063,5.88,188.53,188.38,1.6345]
[1736519436262,19.44759174,188.51,188.4,2.6539]
[1736519436468,1.6093,188.5,188.4,2.6539]
[1736519436859,1.6093,188.5,188.36,84.4506]
[1736519437066,19.44759174,188.48,188.32,8.42857819]
[1736519437266,19.44759174,188.45,188.3,21.14748734]
[1736519437461,5.88,188.44,188.29,22.78938734]
[1736519437969,2.6543,188.38,188.32,2.655]
[1736519438462,2.6546,188.36,188.3,2.6554]
[1736519438761,19.44759174,188.42,188.26,1.5188]
[1736519439358,5.88,188.44,188.28,19.44759174]
[1736519439763,2.6545,188.37,188.31,2.6553]
[1736519440261,19.44759174,188.42,188.28,19.44759174]
[1736519440462,2.6541,188.4,188.32,2.655]
[1736519440666,5.88,188.44,188.28,19.44759174]
[1736519441659,5.88,188.44,188.31,19.44759174]
[1736519441864,25.32759174,188.44,188.28,19.44759174]
[1736519442064,5.8417,188.47,188.41,2.6539]
[1736519442269,1.6093,188.5,188.37,19.44759174]
[1736519442866,5.88,188.53,188.4,19.44759174]
[1736519443569,3.1643,188.54,188.4,19.44759174]
[1736519443870,3.1643,188.54,188.42,2.6536]
[1736519444263,2.6526,188.5,188.44,2.6534]
[1736519444465,3.1643,188.54,188.43,19.44759174]
[1736519444665,1.534,188.54,188.43,19.44759174]
[1736519444963,1.534,188.54,188.38,5.88]
[1736519445168,19.44759174,188.5,188.34,19.44759174]
[1736519445471,5.88,188.49,188.37,19.44759174]
[1736519445664,5.88,188.49,188.36,21.14748734]
[1736519446066,2.6534,188.45,188.39,2.654]
[1736519446268,5.88,188.49,188.36,21.14748734]
[1736519446468,19.44759174,188.47,188.32,4.8851]
[1736519446669,2.6543,188.39,188.33,2.6549]
[1736519446974,1.6591,188.46,188.32,1.6566]
[1736519447170,1.6591,188.46,188.3,2.6554]
[1736519447171,2.6541,188.4,188.3,2.6554]
[1736519447368,2.6541,188.4,188.26,21.14748734]
[1736519447369,7.4438,188.39,188.26,21.14748734]
[1736519447568,1.5913,188.38,188.26,21.14748734]
[1736519447863,31.68954519,188.37,188.26,21.14748734]
[1736519448063,31.68954519,188.37,188.21,21.14748734]
[1736519448264,31.68954519,188.34,188.21,21.14748734]
[1736519448465,31.68954519,188.34,188.21,23.80408734]
[1736519448875,2.6561,188.26,188.19,2.6569]
[1736519449076,5.88,188.3,188.17,3.1925]
[1736519449370,2.6563,188.25,188.17,5.8498]
[1736519450177,1.5913,188.28,188.17,2.6573]
[1736519450376,2.6563,188.24,188.17,2.6573]
[1736519450669,33.28084519,188.28,188.1,54.37453253]
[1736519451170,33.28084519,188.28,188.13,31.68954519]
[1736519451171,1.5913,188.28,188.13,31.68954519]
[1736519451380,2.6563,188.24,188.13,31.68954519]
[1736519451563,31.68954519,188.27,188.1,52.83703253]
[1736519451769,31.68954519,188.27,188.1,31.68954519]
[1736519452068,31.68954519,188.24,188.09,1.6018]
[1736519452474,2.6571,188.19,188.12,2.6579]
[1736519452669,2.6571,188.19,188.09,1.6018]
[1736519452871,2.6571,188.19,188.13,2.6578]
[1736519453076,5.88,188.21,188.09,1.6018]
[1736519453470,5.88,188.21,188.13,2.6578]
[1736519453670,5.88,188.21,188.09,1.6018]
[1736519454270,31.68954519,188.18,188.01,31.68954519]
[1736519454469,3.2173,188.17,188.01,31.68954519]
[1736519454769,31.68954519,188.12,188.0,21.14748734]
[1736519455072,5.88,188.11,188.0,21.14748734]
[1736519455280,2.6586,188.08,188.01,2.6594]
[1736519455474,5.88,188.11,187.99,3.184]
[1736519456272,2.6583,188.1,188.03,2.6592]
[1736519456576,5.88,188.11,188.01,31.68954519]
[1736519456778,2.6575,188.16,188.09,2.6583]
[1736519457070,1.565,188.17,188.04,31.68954519]
[1736519457476,1.565,188.17,188.01,31.68954519]
[1736519457872,1.565,188.17,188.07,2.6585]
[1736519458073,1.565,188.17,188.04,31.68954519]
[1736519458376,4.2224,188.17,188.09,2.6584]
[1736519458577,4.2224,188.17,188.05,31.68954519]
[1736519458780,2.6574,188.17,188.05,31.68954519]
[1736519458987,2.6574,188.16,188.05,31.68954519]
[1736519459279,1.6409,188.21,188.05,31.68954519]
[1736519459470,2.6574,188.16,188.09,2.6584]
[1736519460071,1.6409,188.21,188.05,31.68954519]
[1736519460380,1.6409,188.21,188.08,31.68954519]
[1736519460580,1.6409,188.21,188.11,2.658]
[1736519460775,2.657,188.2,188.08,31.68954519]
[1736519460977,31.68954519,188.3,188.14,31.68954519]
[1736519461287,3.1995,188.35,188.11,31.68954519]
[1736519461288,31.68954519,188.33,188.17,31.68954519]
[1736519461786,2.6555,188.3,188.22,2.6565]
[1736519461984,3.1995,188.35,188.23,31.68954519]
[1736519462182,3.1995,188.35,188.2,5.88]
[1736519462679,31.68954519,188.34,188.2,5.88]
[1736519463081,3.1995,188.35,188.2,5.88]
[1736519463281,31.68954519,188.34,188.2,5.88]
[1736519463582,31.68954519,188.28,188.12,34.80594519]
[1736519463786,5.88,188.33,188.12,3.1164]
[1736519463787,31.68954519,188.25,188.12,3.1164]
[1736519463981,31.68954519,188.28,188.12,34.80594519]
[1736519464178,31.68954519,188.34,188.18,31.68954519]
[1736519464383,3.1995,188.35,188.21,31.68954519]
[1736519464586,2.6553,188.32,188.26,2.6559]
[1736519464881,3.1995,188.35,188.21,31.68954519]
[1736519465081,37.56954519,188.37,188.13,5.88]
[1736519465082,5.88,188.37,188.24,31.68954519]
[1736519465286,3.1636,188.44,188.27,31.68954519]
[1736519465685,3.1636,188.44,188.33,2.6549]
[1736519465686,2.6541,188.4,188.33,2.6549]
[1736519465887,2.6541,188.4,188.27,31.68954519]
[1736519466097,3.1636,188.44,188.27,31.68954519]
[1736519466317,31.68954519,188.43,188.27,31.68954519]
[1736519467107,31.68954519,188.36,188.23,3.1497]
[1736519467406,37.56954519,188.36,188.23,3.1497]
[1736519467609,31.68954519,188.33,188.2,1.6277]
[1736519467809,31.68954519,188.3,188.19,2.6569]
[1736519468003,31.68954519,188.27,188.12,3.1612]
[1736519468204,3.2676,188.32,188.08,7.17585385]
[1736519468205,31.68954519,188.21,188.08,7.17585385]
[1736519468413,31.68954519,188.18,188.08,7.17585385]
[1736519468611,5.88,188.17,188.08,7.17585385]
[1736519468823,2.6579,188.13,188.06,2.6587]
[1736519469007,2.6579,188.13,188.01,95.89013023]
[1736519469412,5.88,188.17,188.08,2.6585]
[1736519469615,5.88,188.17,188.01,95.89013023]
[1736519469616,31.68954519,188.15,188.01,95.89013023]
[1736519469810,31.68954519,188.15,188.0,4.6794]
[1736519470006,2.6584,188.09,188.0,4.6794]
[1736519470315,31.68954519,188.11,187.96,82.9]
[1736519470511,2.6585,188.09,187.99,2.6597]
[1736519470821,5.88,188.15,187.98,31.68954519]
[1736519471008,2.6581,188.11,188.02,2.6593]
[1736519471213,5.88,188.15,188.02,2.6593]
[1736519471410,31.68954519,188.11,187.96,82.9]
[1736519471812,31.68954519,188.08,187.97,2.66]
[1736519472308,31.68954519,188.08,187.92,31.68954519]
[1736519472514,1.6405,188.07,187.92,31.68954519]
[1736519472695,5.88,188.06,187.92,31.68954519]
[1736519473599,5.88,188.06,187.85,64.25303404]
[1736519473600,31.68954519,188.0,187.85,64.25303404]
[1736519473790,31.68954519,187.97,187.84,7.17585385]
[1736519474090,5.88,187.97,187.84,38.86539904]
[1736519474494,5.88,187.97,187.91,2.6609]
[1736519474794,37.56954519,187.97,187.84,7.17585385]
[1736519474995,2.6609,187.92,187.84,7.17585385]
[1736519475293,31.68954519,187.94,187.78,1.6432]
[1736519475886,31.68954519,187.94,187.8,31.68954519]
[1736519476088,1.6174,187.96,187.89,2.6612]
[1736519476283,34.34964519,187.97,187.83,31.68954519]
[1736519476284,2.6601,187.97,187.83,31.68954519]
[1736519476496,5.88,187.98,187.83,31.68954519]
[1736519476794,31.68954519,187.94,187.78,1.6432]
[1736519477189,31.68954519,187.94,187.79,31.68954519]
[1736519477389,1.6174,187.93,187.79,31.68954519]
[1736519478392,31.68954519,187.91,187.73,34.71964519]
[1736519478596,31.68954519,187.88,187.7,31.68954519]
[1736519478792,2.6622,187.82,187.74,2.6632]
[1736519479191,2.6622,187.82,187.69,1.6432]
[1736519479192,2.6624,187.81,187.72,2.6635]
[1736519479392,31.68954519,187.79,187.64,31.68954519]
[1736519479993,5.88,187.87,187.64,31.68954519]
[1736519480294,31.68954519,187.85,187.67,31.68954519]
[1736519480495,2.6622,187.82,187.75,2.6632]
[1736519480794,5.88,187.87,187.73,31.68954519]
[1736519481383,5.88,187.87,187.71,1.6228]
[1736519481596,2.6618,187.86,187.78,2.6627]
[1736519481798,5.88,187.87,187.78,2.6627]
[1736519481999,5.88,187.87,187.73,31.68954519]
[1736519482500,5.88,187.87,187.71,4.6329]
[1736519482796,31.68954519,187.85,187.77,2.6629]
[1736519482998,31.68954519,187.85,187.71,3.1296]
[1736519483188,31.68954519,187.82,187.67,31.68954519]
[1736519483391,31.68954519,187.88,187.68,1.6228]
[1736519483598,37.60954519,187.91,187.73,31.68954519]
[1736519483792,37.60954519,187.91,187.74,1.5848]
[1736519484098,31.68954519,187.91,187.76,31.68954519]
[1736519484300,2.6613,187.89,187.82,2.6622]
[1736519484497,31.68954519,187.91,187.74,7.5248]
[1736519484699,31.68954519,187.91,187.76,31.68954519]
[1736519484899,34.35054519,187.91,187.76,31.68954519]
[1736519485299,31.68954519,187.91,187.74,1.5848]
[1736519485499,31.68954519,187.97,187.79,31.68954519]
[1736519485802,3.1299,187.99,187.82,31.68954519]
[1736519485997,3.1299,187.99,187.82,37.62954519]
[1736519486199,31.68954519,187.95,187.8,3.1096]
[1736519486396,31.68954519,187.88,187.81,2.6623]
[1736519486596,31.68954519,187.88,187.75,1.5462]
[1736519486796,37.64954519,187.91,187.75,1.5462]
[1736519486998,37.64954519,187.91,187.79,2.6625]
[1736519487197,37.64954519,187.91,187.75,1.5462]
[1736519487598,37.64954519,187.91,187.8,2.6624]
[1736519487800,37.64954519,187.91,187.75,1.5462]
[1736519488102,5.96,187.91,187.75,1.5462]
[1736519488700,5.96,187.91,187.84,2.6619]
[1736519488900,5.96,187.91,187.75,1.5462]
[1736519489107,5.96,187.91,187.79,31.68954519]
[1736519489312,31.68954519,187.94,187.79,31.68954519]
[1736519489510,2.6607,187.93,187.87,2.6614]
[1736519489810,2.6607,187.93,187.79,31.68954519]
[1736519490013,31.68954519,187.97,187.82,31.68954519]
[1736519490206,3.1299,187.99,187.85,31.68954519]
[1736519490402,3.1299,187.99,187.86,1.547]
[1736519490612,1.6096,187.99,187.86,1.547]
[1736519491109,31.68954519,188.03,187.96,2.6602]
[1736519491404,31.68954519,188.06,187.86,1.547]
[1736519491612,7.00423,188.01,187.92,31.68954519]
[1736519492110,7.00423,188.01,187.87,4.17208916]
[1736519492506,31.68954519,188.0,187.87,0.97788916]
[1736519492709,31.68954519,187.94,187.87,0.97788916]
[1736519492903,2.6611,187.91,187.87,0.97788916]
[1736519493214,31.68954519,187.94,187.87,0.97788916]
[1736519494011,31.68954519,187.97,187.87,0.97788916]
[1736519494712,2.6602,187.96,187.9,2.6611]
[1736519494911,31.68954519,187.94,187.87,0.97788916]
[1736519495110,31.68954519,187.91,187.75,3.1798]
[1736519495305,1.6262,187.93,187.75,4.7563]
[1736519495306,31.68954519,187.88,187.75,4.7563]
[1736519495612,5.98,187.9,187.75,4.7563]
[1736519495812,5.98,187.9,187.77,31.68954519]
[1736519496211,5.98,187.9,187.75,4.7563]
[1736519496607,2.6616,187.87,187.81,2.6623]
[1736519496913,5.98,187.9,187.75,4.7563]
[1736519497312,5.98,187.9,187.83,2.662]
[1736519497611,5.98,187.9,187.75,4.7563]
[1736519497815,5.98,187.9,187.71,114.72954519]
[1736519498016,31.68954519,187.86,187.72,1.6295]
[1736519498806,2.6621,187.84,187.78,2.6626]
[1736519499011,31.68954519,187.86,187.78,2.6626]
[1736519499705,31.68954519,187.86,187.72,1.6295]
[1736519500105,31.68954519,187.83,187.71,83.04]
[1736519500314,2.6627,187.79,187.74,2.6633]
[1736519500519,31.68954519,187.8,187.67,1.6056]
[1736519501913,2.6631,187.77,187.71,2.6636]
[1736519502109,31.68954519,187.8,187.67,1.6056]
[1736519502313,5.96,187.81,187.68,31.68954519]
[1736519502517,31.68954519,187.92,187.71,31.68954519]
[1736519502518,31.68954519,187.86,187.71,31.68954519]
[1736519503018,2.6629,187.77,187.72,2.6635]
[1736519503212,31.68954519,187.8,187.67,1.6056]
[1736519503408,37.64954519,187.8,187.62,44.82539904]
[1736519503715,31.68954519,187.74,187.62,7.17585385]
[1736519504215,2.6639,187.71,187.62,7.17585385]
[1736519504618,2.6635,187.73,187.68,2.6641]
[1736519504817,31.68954519,187.77,187.62,7.17585385]
[1736519505014,31.68954519,187.77,187.6,59.44819959]
[1736519505222,1.5467,187.79,187.62,31.68954519]
[1736519505422,3.2258,187.82,187.65,31.68954519]
[1736519505921,3.2258,187.82,187.6,3.0549]
[1736519505922,31.68954519,187.8,187.62,37.64954519]
[1736519506124,31.68954519,187.77,187.62,37.64954519]
[1736519506622,4.7874,187.82,187.68,31.68954519]
[1736519506921,4.7874,187.82,187.69,1.6036]
[1736519507223,2.663,187.77,187.67,2.6643]
[1736519507415,31.68954519,187.8,187.63,1.6036]
[1736519507821,4.7874,187.82,187.68,31.68954519]
[1736519508223,2.6625,187.8,187.76,2.6631]
[1736519508421,3.2258,187.82,187.68,31.68954519]
[1736519508619,31.68954519,187.86,187.71,31.68954519]
[1736519508825,31.68954519,187.86,187.65,31.68954519]
[1736519508826,31.68954519,187.89,187.83,2.6621]
[1736519509022,31.68954519,187.89,187.74,31.68954519]
[1736519509214,3.1625,187.9,187.74,31.68954519]
[1736519509418,5.8237,187.9,187.85,2.6618]
[1736519509622,3.1625,187.9,187.85,2.6618]
[1736519509824,2.6608,187.92,187.87,2.6614]
[1736519510020,2.6608,187.92,187.77,31.68954519]
[1736519510223,31.68954519,187.95,187.77,31.68954519]
[1736519510424,2.6608,187.92,187.87,2.6614]
[1736519511020,2.6612,187.9,187.81,5.96]
[1736519511220,5.96,187.96,187.81,5.96]
[1736519511221,31.68954519,187.92,187.81,5.96]
[1736519511422,31.68954519,187.95,187.81,5.96]
[1736519511619,31.68954519,187.98,187.81,5.96]
[1736519511821,31.68954519,187.95,187.82,1.6223]
[1736519512028,31.68954519,187.92,187.77,31.68954519]
[1736519512229,31.68954519,187.89,187.76,83.1]
[1736519512621,2.6618,187.86,187.8,2.6624]
[1736519512824,2.6618,187.86,187.76,83.1]
[1736519513126,31.68954519,187.92,187.77,31.68954519]
[1736519513327,31.68954519,187.89,187.76,83.1]
[1736519513924,5.94,187.9,187.76,83.1]
[1736519514123,31.68954519,187.83,187.71,21.14748734]
[1736519514329,31.68954519,187.8,187.71,21.14748734]
[1736519514531,31.68954519,187.77,187.71,21.14748734]
[1736519515029,1.5918,187.79,187.65,60.01288638]
[1736519515238,4.2544,187.79,187.65,60.01288638]
[1736519515625,1.5918,187.79,187.65,60.01288638]
[1736519516333,1.5918,187.79,187.63,91.90255385]
[1736519516929,2.6632,187.76,187.69,2.6639]
[1736519517121,2.6632,187.76,187.63,91.90255385]
[1736519517333,1.5918,187.79,187.65,31.68954519]
[1736519517528,2.6628,187.78,187.73,2.6635]
[1736519517831,1.5918,187.79,187.65,31.68954519]
[1736519518026,31.68954519,187.83,187.68,31.68954519]
[1736519518227,31.68954519,187.83,187.69,5.94]
[1736519518228,2.6624,187.81,187.69,5.94]
[1736519518423,31.68954519,187.86,187.71,31.68954519]
[1736519518835,1.5836,187.87,187.71,31.68954519]
[1736519519128,1.5836,187.87,187.75,31.68954519]
[1736519519330,3.2306,187.88,187.78,2.6626]
[1736519519533,3.2306,187.88,187.79,5.92]
[1736519519932,1.6638,187.88,187.84,2.6619]
[1736519520231,31.68954519,187.95,187.79,5.92]
[1736519520428,2.6618,187.85,187.76,7.4585]
[1736519520635,31.68954519,187.89,187.76,7.4585]
[1736519520932,2.6617,187.86,187.76,7.4585]
[1736519521329,31.68954519,187.89,187.76,7.4585]
[1736519521936,31.68954519,187.89,187.76,1.5385]
[1736519522127,1.5716,187.88,187.76,1.5385]
[1736519522328,1.5716,187.88,187.73,7.4407]
[1736519522631,31.68954519,187.8,187.7,7.17585385]
[1736519522832,1.6067,187.79,187.7,7.17585385]
[1736519523135,1.6067,187.79,187.65,38.86539904]
[1736519523533,2.6632,187.75,187.67,2.6643]
[1736519523732,31.68954519,187.77,187.65,7.17585385]
[1736519524027,1.6548,187.76,187.65,7.17585385]
[1736519524228,1.6548,187.76,187.63,83.08]
[1736519524633,2.6639,187.71,187.65,2.6645]
[1736519525126,31.68954519,187.74,187.63,2.6649]
[1736519525333,31.68954519,187.74,187.61,28.32334119]
[1736519525535,31.68954519,187.74,187.57,5.9]
[1736519525731,2.6638,187.71,187.59,31.68954519]
[1736519525930,1.6548,187.76,187.62,31.68954519]
[1736519526232,2.6632,187.75,187.7,2.6638]
[1736519526531,31.68954519,187.86,187.68,37.60954519]
[1736519526734,5.92,187.91,187.74,31.68954519]
[1736519526735,3.2883,187.87,187.74,31.68954519]
[1736519526926,1.6317,187.91,187.77,31.68954519]
[1736519527233,1.6317,187.91,187.78,5.92]
[1736519527441,3.2883,187.94,187.8,31.68954519]
[1736519528036,4.92,187.94,187.8,31.68954519]
[1736519528235,4.92,187.94,187.81,1.5799]
[1736519528435,2.6609,187.91,187.81,1.5799]
[1736519528638,4.92,187.94,187.81,1.5799]
[1736519529035,31.68954519,187.92,187.77,31.68954519]
[1736519529240,31.68954519,187.89,187.75,8.90635926]
[1736519529541,31.68954519,187.92,187.77,31.68954519]
[1736519529839,31.68954519,187.92,187.75,8.90635926]
[1736519530339,31.68954519,187.92,187.71,176.91617389]
[1736519530340,31.68954519,187.89,187.71,31.68954519]
[1736519530532,31.68954519,187.92,187.77,31.68954519]
[1736519530732,4.92,187.94,187.77,31.68954519]
[1736519530928,31.68954519,187.92,187.77,31.68954519]
[1736519531135,0.86413352,187.91,187.74,31.68954519]
[1736519531334,31.68954519,187.89,187.74,31.68954519]
[1736519531638,4.92,187.94,187.71,33.26214519]
[1736519531639,31.68954519,187.86,187.71,33.26214519]
[1736519532239,31.68954519,187.89,187.74,31.68954519]
[1736519532441,31.68954519,187.92,187.74,31.68954519]
[1736519532638,10.84,187.94,187.74,31.68954519]
[1736519532639,31.68954519,187.89,187.74,31.68954519]
[1736519533344,31.68954519,187.86,187.71,33.26214519]
[1736519533543,31.68954519,187.86,187.71,1.5726]
[1736519533836,31.68954519,187.83,187.69,29.33503705]
[1736519534041,31.68954519,187.8,187.69,29.33503705]
[1736519534346,4.8559,187.82,187.68,83.1]
[1736519534531,4.8559,187.82,187.68,114.78954519]
[1736519534942,31.68954519,187.8,187.68,83.1]
[1736519535135,4.8559,187.82,187.68,83.1]
[1736519535441,4.8559,187.82,187.75,2.6632]
[1736519535636,4.8559,187.82,187.68,114.78954519]
[1736519535840,2.6628,187.78,187.72,2.6636]
[1736519536038,4.8559,187.82,187.68,83.1]
[1736519536436,2.6625,187.8,187.75,2.6632]
[1736519536637,4.8559,187.82,187.68,114.78954519]
[1736519537146,4.8559,187.82,187.77,2.6628]
[1736519537444,4.8559,187.82,187.68,114.78954519]
[1736519537640,4.8559,187.82,187.68,83.1]
[1736519538034,31.68954519,187.8,187.68,83.1]
[1736519538242,2.6632,187.76,187.65,31.68954519]
[1736519538540,4.8559,187.82,187.65,31.68954519]
[1736519538741,4.8559,187.82,187.71,2.6637]
[1736519538938,4.8559,187.82,187.65,31.68954519]
[1736519539445,2.663,187.77,187.65,31.68954519]
[1736519539843,4.8559,187.82,187.65,31.68954519]
[1736519540148,4.8559,187.82,187.73,2.6634]
[1736519540340,4.8559,187.82,187.68,31.68954519]
[1736519540541,2.6624,187.81,187.68,31.68954519]
[1736519540742,31.68954519,187.86,187.71,31.68954519]
[1736519540944,1.6496,187.88,187.72,3.1348]
[1736519541141,31.68954519,187.86,187.71,5.96]
[1736519541347,31.68954519,187.83,187.66,3.0534]
[1736519541543,31.68954519,187.77,187.62,31.68954519]
[1736519541845,3.1295,187.76,187.64,29.33503705]
[1736519542046,2.6636,187.73,187.64,29.33503705]
[1736519542252,3.1295,187.76,187.64,29.33503705]
[1736519542647,2.6637,187.72,187.62,31.68954519]
[1736519542847,3.1295,187.76,187.6,1.5225]
[1736519543050,31.68954519,187.74,187.59,3.0534]
[1736519543241,1.6405,187.73,187.59,34.74294519]
[1736519543549,3.1295,187.76,187.62,31.68954519]
[1736519543848,1.6405,187.81,187.65,31.68954519]
[1736519544146,4.3029,187.81,187.75,2.6631]
[1736519544346,3.1108,187.85,187.71,5.98]
[1736519544546,140.65671683,187.89,187.74,31.68954519]
[1736519544747,90.94848182,187.91,187.85,2.6618]
[1736519544947,88.28748182,187.91,187.8,37.66954519]
[1736519545342,88.28748182,187.91,187.81,1.6516]
[1736519545547,1.6301,187.92,187.81,1.6516]
[1736519545747,12.98423,188.01,187.81,1.6516]
[1736519545748,38.69377519,188.01,187.86,31.68954519]
[1736519545949,0.86382853,188.0,187.9,31.68954519]
[1736519546150,7.00423,188.01,187.91,7.6316]
[1736519546350,2.6597,188.0,187.93,2.6605]
[1736519546547,31.68954519,188.0,187.84,31.68954519]
[1736519546747,31.68954519,187.97,187.83,1.6516]
[1736519546947,31.68954519,187.94,187.78,31.68954519]
[1736519547143,31.68954519,187.94,187.77,30.98663705]
[1736519547348,31.68954519,187.91,187.77,30.98663705]
[1736519547547,2.6615,187.87,187.77,30.98663705]
[1736519547751,31.68954519,187.91,187.77,1.6516]
[1736519548146,5.98,187.93,187.77,1.6516]
[1736519548456,31.68954519,187.94,187.77,1.6516]
[1736519548656,3.1095,187.95,187.77,1.6516]
[1736519548657,31.68954519,187.91,187.77,1.6516]
[1736519549550,31.68954519,187.88,187.75,1.6068]
[1736519549751,31.68954519,187.85,187.73,83.12]
[1736519550155,7.6407,187.87,187.74,31.68954519]
[1736519550362,31.68954519,187.91,187.74,31.68954519]
[1736519550554,31.68954519,187.91,187.77,31.68954519]
[1736519550951,1.6575,187.94,187.8,31.68954519]
[1736519551158,2.6601,187.98,187.92,2.6608]
[1736519551361,7.00423,188.01,187.89,31.68954519]
[1736519551763,7.00423,188.01,187.9,1.5159]
[1736519551956,7.00423,188.01,187.92,31.68954519]
[1736519552463,7.00423,188.01,187.9,1.5159]
[1736519552668,7.00423,188.01,187.92,31.68954519]
[1736519552873,3e-05,188.01,188.0,2.6597]
[1736519553370,3e-05,188.01,187.95,2.6603]
[1736519553573,3e-05,188.01,187.93,3.0669]
[1736519553963,3e-05,188.01,187.95,31.68954519]
[1736519554566,3e-05,188.01,188.0,2.6597]
[1736519554874,31.68954519,188.1,187.95,31.68954519]
[1736519555176,31.68954519,188.1,187.96,2.6602]
[1736519555375,1.5317,188.12,187.93,3.0669]
[1736519555376,31.68954519,188.07,187.93,3.0669]
[1736519556375,31.68954519,188.1,187.94,31.68954519]
[1736519556783,31.68954519,188.1,187.93,3.0669]
[1736519557076,31.68954519,188.04,187.9,1.5159]
[1736519557275,1.6628,188.03,187.9,1.5159]
[1736519557671,3.1312,188.02,187.9,1.5159]
[1736519558372,2.6592,188.03,187.97,2.6601]
[1736519558570,31.68954519,188.07,187.91,31.68954519]
[1736519558767,31.68954519,188.04,187.9,1.5159]
[1736519559071,31.68954519,188.01,187.84,3.2122]
[1736519559274,31.68954519,187.98,187.84,3.2122]
[1736519559470,2.6606,187.94,187.84,3.2122]
[1736519559666,31.68954519,187.98,187.84,3.2122]
[1736519560073,31.68954519,187.98,187.9,2.6611]
[1736519560281,31.68954519,187.98,187.84,3.2122]
[1736519561076,3.2716,188.0,187.84,3.2122]
[1736519561280,3.2716,188.0,187.87,31.68954519]
[1736519561781,31.68954519,188.01,187.84,3.2122]
[1736519561968,1.6301,188.0,187.84,3.2122]
[1736519562171,31.68954519,187.98,187.84,3.2122]